fUST/lending_fUST_20240111
["ID","MTS","AMOUNT","RATE_DAILY","PERIOD"]
[311219251,1704985840586,-638.429286,0.00029997,2]
[311219252,1704985840595,-782.60703385,0.00029998,2]
[311219253,1704985840604,-155.73414115,0.00029998,2]
[311219254,1704985840614,-15040.88068289,0.0003,4]
[311219255,1704985840624,-6975.26133049,0.0003,4]
[311219256,1704985840633,-54995.6317606,0.0003,2]
[311219257,1704985840642,-55552.1602185,0.0003,15]
[311219258,1704985840651,-236.54101658,0.0003,7]
[311219259,1704985840661,-686.8051383,0.0003,4]
[311219260,1704985840670,-244.50330111,0.0003,7]
[311219261,1704985840679,-463.46661998,0.0003,4]
[311219262,1704985840689,-2020.9508771,0.0003,4]
[311219263,1704985840698,-639.80669723,0.0003,4]
[311219264,1704985840707,-3475.69898232,0.0003,3]
[311219265,1704985840719,-2085.5324466,0.0003,10]
[311219266,1704985840734,-4991.0,0.0003,5]
[311219267,1704985840743,-1224.23967452,0.0003,10]
[311219268,1704985840752,-3529.32232472,0.0003,5]
[311219269,1704985840762,-1516.401694,0.0003,2]
[311219270,1704985840771,-182.0,0.0003,2]
[311219271,1704985840780,-156.64783063,0.00030011,7]
[311219272,1704985840790,-300.0,0.000301,14]
[311219273,1704985840799,-158.7035572,0.00030135,4]
[311219274,1704985840808,-511.88964597,0.00030136,2]
[311219275,1704985840817,-500.0,0.00030136,2]
[311219276,1704985840827,-500.0,0.00030136,2]
[311219277,1704985840836,-546.83656428,0.00030136,2]
[311219278,1704985840847,-500.0,0.00030136,2]
[311219279,1704985840857,-500.0,0.00030136,2]
[311219280,1704985840866,-500.0,0.00030136,2]
[311219281,1704985840875,-729.31,0.00030136,2]
[311219282,1704985840884,-500.0,0.00030136,2]
[311219283,1704985840894,-500.0,0.00030136,2]
[311219284,1704985840903,-500.0,0.00030136,2]
[311219285,1704985840913,-1000.0,0.00030136,2]
[311219286,1704985840922,-500.0,0.00030136,2]
[311219287,1704985840931,-500.0,0.00030136,2]
[311219288,1704985840940,-500.0,0.00030136,2]
[311219289,1704985840950,-500.0,0.00030136,2]
[311219290,1704985840959,-619.31,0.00030136,2]
[311219291,1704985840973,-896.81,0.00030136,2]
[311219292,1704985840983,-500.0,0.00030136,2]
[311219293,1704985840994,-500.0,0.00030136,2]
[311219294,1704985841004,-150.1941832,0.00030136,2]
[311219295,1704985841014,-500.0,0.00030136,2]
[311219296,1704985841024,-500.0,0.00030136,2]
[311219297,1704985841033,-500.0,0.00030136,2]
[311219298,1704985841043,-522.58691347,0.00030136,2]
[311219299,1704985841054,-500.0,0.00030136,2]
[311219300,1704985841064,-500.0,0.00030136,2]
[311219301,1704985841074,-500.0,0.00030136,2]
[311219302,1704985841084,-500.0,0.00030136,2]
[311219303,1704985841094,-559.32044654,0.00030136,2]
[311219304,1704985841103,-500.0,0.00030136,2]
[311219305,1704985841113,-500.0,0.00030136,2]
[311219306,1704985841122,-500.0,0.00030136,2]
[311219307,1704985841131,-500.0,0.00030136,2]
[311219308,1704985841141,-500.0,0.00030136,2]
[311219309,1704985841150,-799.07,0.00030136,2]
[311219310,1704985841160,-500.0,0.00030136,2]
[311219311,1704985841169,-500.0,0.00030136,2]
[311219312,1704985841179,-505.81,0.00030136,2]
[311219313,1704985841189,-503.83503635,0.00030136,2]
[311219314,1704985841199,-500.0,0.00030136,2]
[311219315,1704985841209,-559.81,0.00030136,2]
[311219316,1704985841222,-500.0,0.00030136,2]
[311219317,1704985841231,-500.0,0.00030136,2]
[311219318,1704985841241,-347.36870979,0.00030136,2]
[311219319,1704985841250,-1250.5,0.00030136,2]
[311219320,1704985841259,-500.0,0.00030136,2]
[311219321,1704985841268,-500.0,0.00030136,2]
[311219322,1704985841277,-502.55761513,0.00030136,2]
[311219323,1704985841286,-570.29,0.00030136,2]
[311219324,1704985841296,-1460.93,0.00030136,2]
[311219325,1704985841305,-706.71,0.00030136,2]
[311219326,1704985841315,-500.0,0.00030136,2]
[311219327,1704985841325,-500.0,0.00030136,2]
[311219328,1704985841335,-500.0,0.00030136,2]
[311219329,1704985841345,-500.0,0.00030136,2]
[311219330,1704985841354,-500.0,0.00030136,2]
[311219331,1704985841363,-500.0,0.00030136,2]
[311219332,1704985841372,-604.49743939,0.00030136,2]
[311219333,1704985841382,-500.0,0.00030136,2]
[311219334,1704985841391,-2304.52,0.00030136,2]
[311219335,1704985841409,-500.0,0.00030136,2]
[311219336,1704985841420,-500.0,0.00030136,2]
[311219337,1704985841430,-616.55,0.00030136,2]
[311219338,1704985841440,-500.0,0.00030136,2]
[311219339,1704985841449,-500.0,0.00030136,2]
[311219340,1704985841459,-342.14057924,0.00030136,2]
[311219341,1704985841474,-11035.08,0.00030136,2]
[311219342,1704985841483,-500.0,0.00030136,2]
[311219343,1704985841494,-500.0,0.00030136,2]
[311219344,1704985841504,-558.13,0.00030136,2]
[311219345,1704985841514,-500.0,0.00030136,2]
[311219346,1704985841524,-514.17023555,0.00030136,2]
[311219347,1704985841534,-500.0,0.00030136,2]
[311219348,1704985841544,-506.25,0.00030136,2]
[311219349,1704985841553,-7120.48,0.00030136,2]
[311219350,1704985841563,-500.0,0.00030136,2]
[311219351,1704985841574,-2281.26,0.00030136,2]
[311219352,1704985841585,-500.0,0.00030136,2]
[311219353,1704985841595,-441.20485548,0.00030136,2]
[311219354,1704985841613,-58.79514452,0.00030136,2]
[311219355,1704985841623,-3969.33,0.00030136,2]
[311219356,1704985841633,-500.0,0.00030136,2]
[311219357,1704985841642,-500.0,0.00030136,2]
[311219358,1704985841653,-500.0,0.00030136,2]
[311219359,1704985841663,-1777.63,0.00030136,2]
[311219360,1704985841672,-500.0,0.00030136,2]
[311219361,1704985841682,-707.83,0.00030136,2]
[311219362,1704985841692,-500.0,0.00030136,2]
[311219363,1704985841703,-1034.16356283,0.00030136,2]
[311219364,1704985841728,-488.76643717,0.00030136,2]
[311219365,1704985841739,-500.0,0.00030136,2]
[311219366,1704985841749,-500.0,0.00030136,2]
[311219367,1704985841760,-500.0,0.00030136,2]
[311219368,1704985841771,-1101.8,0.00030136,2]
[311219369,1704985841781,-619.03,0.00030136,2]
[311219370,1704985841791,-531.03914089,0.00030136,2]
[311219371,1704985841801,-731.38,0.00030136,2]
[311219372,1704985841811,-497.89878031,0.00030136,2]
[311219373,1704985841821,-500.0,0.00030136,2]
[311219374,1704985841831,-681.11468394,0.000302,3]
[311219375,1704985841841,-151.10879833,0.00030258,4]
[311219376,1704985841851,-242.01122945,0.00030409,4]
[311219377,1704985841861,-500.0,0.0003041,2]
[311219378,1704985841871,-500.0,0.0003041,2]
[311219379,1704985841880,-500.0,0.0003041,2]
[311219380,1704985841890,-500.0,0.0003041,2]
[311219381,1704985841900,-729.31,0.0003041,2]
[311219382,1704985841910,-337.15639692,0.0003041,2]
[311219383,1704985841920,-500.0,0.0003041,2]
[311219384,1704985841930,-1000.0,0.0003041,2]
[311219385,1704985841940,-500.0,0.0003041,2]
[311219386,1704985841950,-349.7742751,0.0003041,2]
[311219387,1704985841959,-499.40184307,0.0003041,2]
[311219388,1704985841973,-619.31,0.0003041,2]
[311219389,1704985841983,-896.81,0.0003041,2]
[311219390,1704985841992,-500.0,0.0003041,2]
[311219391,1704985842003,-500.0,0.0003041,2]
[311219392,1704985842012,-500.0,0.0003041,2]
[311219393,1704985842022,-500.0,0.0003041,2]
[311219394,1704985842032,-500.0,0.0003041,2]
[311219395,1704985842042,-500.0,0.0003041,2]
[311219396,1704985842051,-500.0,0.0003041,2]
[311219397,1704985842196,-500.0,0.0003041,2]
[311219398,1704985842211,-500.0,0.0003041,2]
[311219399,1704985842224,-500.0,0.0003041,2]
[311219400,1704985842235,-419.38280937,0.0003041,2]
[311219401,1704985842245,-500.0,0.0003041,2]
[311219402,1704985842255,-500.0,0.0003041,2]
[311219403,1704985842266,-799.07,0.0003041,2]
[311219404,1704985842276,-278.63115489,0.0003041,2]
[311219405,1704985842285,-505.81,0.0003041,2]
[311219406,1704985842295,-500.0,0.0003041,2]
[311219407,1704985842307,-559.81,0.0003041,2]
[311219408,1704985842316,-368.20493554,0.0003041,2]
[311219409,1704985842326,-500.0,0.0003041,2]
[311219410,1704985842337,-1250.5,0.0003041,2]
[311219411,1704985842347,-500.0,0.0003041,2]
[311219412,1704985842358,-570.29,0.0003041,2]
[311219413,1704985842368,-1460.93,0.0003041,2]
[311219414,1704985842377,-706.71,0.0003041,2]
[311219415,1704985842387,-500.0,0.0003041,2]
[311219416,1704985842396,-500.0,0.0003041,2]
[311219417,1704985842408,-544.94475698,0.0003041,2]
[311219418,1704985842418,-500.0,0.0003041,2]
[311219419,1704985842427,-500.0,0.0003041,2]
[311219420,1704985842437,-515.88796957,0.0003041,2]
[311219421,1704985842446,-500.0,0.0003041,2]
[311219422,1704985842456,-2304.52,0.0003041,2]
[311219423,1704985842470,-500.0,0.0003041,2]
[311219424,1704985842479,-500.0,0.0003041,2]
[311219425,1704985842488,-616.55,0.0003041,2]
[311219426,1704985842497,-52.80101654,0.0003041,2]
[311219427,1704985842510,-447.19898346,0.0003041,2]
[311219428,1704985842519,-500.0,0.0003041,2]
[311219430,1704985842529,-11035.08,0.0003041,2]
[311219432,1704985842538,-500.0,0.0003041,2]
[311219433,1704985842547,-500.0,0.0003041,2]
[311219435,1704985842557,-558.13,0.0003041,2]
[311219437,1704985842566,-224.38,0.0003041,2]
[311219439,1704985842576,-506.25,0.0003041,2]
[311219440,1704985842586,-5369.06667114,0.0003041,2]
[311219445,1704985842630,-1751.41332886,0.0003041,2]
[311219447,1704985842640,-409.44955892,0.0003041,2]
[311219449,1704985842650,-2281.26,0.0003041,2]
[311219452,1704985842660,-500.0,0.0003041,2]
[311219454,1704985842669,-545.08796361,0.0003041,2]
[311219457,1704985842679,-3227.64022341,0.0003041,2]
[311219460,1704985842691,-741.68977659,0.0003041,2]
[311219463,1704985842701,-500.0,0.0003041,2]
[311219467,1704985842711,-500.0,0.0003041,2]
[311219471,1704985842723,-1777.63,0.0003041,2]
[311219474,1704985842734,-500.0,0.0003041,2]
[311219479,1704985842743,-707.83,0.0003041,2]
[311219483,1704985842753,-234.14884369,0.0003041,2]
[311219486,1704985842763,-1522.93,0.0003041,2]
[311219488,1704985842772,-500.0,0.0003041,2]
[311219489,1704985842781,-500.0,0.0003041,2]
[311219490,1704985842790,-500.0,0.0003041,2]
[311219491,1704985842800,-1101.8,0.0003041,2]
[311219492,1704985842809,-619.03,0.0003041,2]
[311219493,1704985842818,-731.38,0.0003041,2]
[311219494,1704985842828,-500.0,0.0003041,2]
[311219495,1704985842838,-916.0,0.0003066,30]
[311219496,1704985842847,-1279.0,0.0003066,30]
[311219497,1704985842857,-916.0,0.0003067,30]
[311219498,1704985842866,-1279.0,0.0003067,30]
[311219499,1704985842876,-519.59223065,0.0003068,30]
[311219500,1704985842888,-396.40776935,0.0003068,30]
[311219501,1704985842898,-1279.0,0.0003068,30]
[311219502,1704985842908,-246.24744714,0.00030684,2]
[311219503,1704985842944,-253.75255286,0.00030684,2]
[311219504,1704985842954,-500.0,0.00030684,2]
[311219505,1704985842966,-316.65634624,0.00030684,2]
[311219506,1704985842975,-729.31,0.00030684,2]
[311219507,1704985842985,-500.0,0.00030684,2]
[311219508,1704985842994,-1000.0,0.00030684,2]
[311219509,1704985843004,-500.0,0.00030684,2]
[311219510,1704985843013,-619.31,0.00030684,2]
[311219511,1704985843023,-896.81,0.00030684,2]
[311219512,1704985843033,-501.60565084,0.00030684,2]
[311219513,1704985843043,-500.0,0.00030684,2]
[311219514,1704985843052,-500.0,0.00030684,2]
[311219515,1704985843062,-500.0,0.00030684,2]
[311219516,1704985843071,-500.0,0.00030684,2]
[311219517,1704985843082,-500.0,0.00030684,2]
[311219518,1704985843091,-500.0,0.00030684,2]
[311219519,1704985843101,-500.0,0.00030684,2]
[311219520,1704985843110,-500.0,0.00030684,2]
[311219521,1704985843120,-500.0,0.00030684,2]
[311219522,1704985843131,-500.0,0.00030684,2]
[311219523,1704985843140,-799.07,0.00030684,2]
[311219524,1704985843150,-505.81,0.00030684,2]
[311219525,1704985843159,-500.0,0.00030684,2]
[311219526,1704985843170,-559.81,0.00030684,2]
[311219527,1704985843179,-500.0,0.00030684,2]
[311219528,1704985843189,-1250.5,0.00030684,2]
[311219529,1704985843198,-159.39372172,0.00030684,2]
[311219530,1704985843207,-570.29,0.00030684,2]
[311219531,1704985843220,-1460.93,0.00030684,2]
[311219532,1704985843230,-706.71,0.00030684,2]
[311219533,1704985843239,-383.00575232,0.00030684,2]
[311219534,1704985843249,-393.48194259,0.00030684,2]
[311219535,1704985843258,-510.08087373,0.00030684,2]
[311219538,1704985843268,-500.0,0.00030684,2]
[311219540,1704985843278,-500.0,0.00030684,2]
[311219544,1704985843287,-2304.52,0.00030684,2]
[311219547,1704985843296,-500.0,0.00030684,2]
[311219550,1704985843306,-500.0,0.00030684,2]
[311219553,1704985843315,-616.55,0.00030684,2]
[311219556,1704985843325,-500.0,0.00030684,2]
[311219559,1704985843334,-500.0,0.00030684,2]
[311219562,1704985843343,-11035.08,0.00030684,2]
[311219565,1704985843353,-500.0,0.00030684,2]
[311219567,1704985843362,-500.0,0.00030684,2]
[311219569,1704985843371,-558.13,0.00030684,2]
[311219571,1704985843380,-506.25,0.00030684,2]
[311219573,1704985843390,-7120.48,0.00030684,2]
[311219575,1704985843399,-2281.26,0.00030684,2]
[311219577,1704985843408,-151.76954907,0.00030684,2]
[311219579,1704985843417,-1086.43361063,0.00030684,2]
[311219581,1704985843433,-2882.89638937,0.00030684,2]
[311219583,1704985843443,-500.0,0.00030684,2]
[311219585,1704985843453,-500.0,0.00030684,2]
[311219587,1704985843466,-1777.63,0.00030684,2]
[311219589,1704985843476,-500.0,0.00030684,2]
[311219591,1704985843486,-707.83,0.00030684,2]
[311219592,1704985843496,-15.2497429,0.00030684,2]
[311219593,1704985843525,-1507.6802571,0.00030684,2]
[311219594,1704985843535,-500.0,0.00030684,2]
[311219595,1704985843544,-500.0,0.00030684,2]
[311219596,1704985843554,-500.0,0.00030684,2]
[311219597,1704985843563,-1101.8,0.00030684,2]
[311219598,1704985843573,-619.03,0.00030684,2]
[311219599,1704985843586,-731.38,0.00030684,2]
[311219600,1704985843596,-500.0,0.00030684,2]
[311219601,1704985843605,-156.64783063,0.00030719,7]
[311219602,1704985843615,-152.31739518,0.00030783,7]
[311219603,1704985843627,-12226.54269347,0.00030875,5]
[311219604,1704985843637,-151.10879833,0.00030875,2]
[311219605,1704985843647,-310.02972307,0.00030894,2]
[311219606,1704985843657,-497.47443706,0.00030894,2]
[311219607,1704985843667,-308.71977135,0.00030894,2]
[311219608,1704985843676,-229.22863513,0.00030894,2]
[311219609,1704985843686,-500.0,0.00030958,2]
[311219610,1704985843695,-500.0,0.00030958,2]
[311219611,1704985843705,-729.31,0.00030958,2]
[311219612,1704985843717,-500.0,0.00030958,2]
[311219613,1704985843727,-1000.0,0.00030958,2]
[311219614,1704985843736,-500.0,0.00030958,2]
[311219615,1704985843745,-619.31,0.00030958,2]
[311219616,1704985843754,-896.81,0.00030958,2]
[311219617,1704985843764,-500.0,0.00030958,2]
[311219618,1704985843773,-500.0,0.00030958,2]
[311219619,1704985843782,-521.32797201,0.00030958,2]
[311219620,1704985843791,-376.14182107,0.00030958,2]
[311219621,1704985843801,-379.63044271,0.00030958,2]
[311219622,1704985843810,-500.0,0.00030958,2]
[311219623,1704985843820,-500.0,0.00030958,2]
[311219624,1704985843829,-500.0,0.00030958,2]
[311219625,1704985843838,-500.0,0.00030958,2]
[311219626,1704985843847,-500.0,0.00030958,2]
[311219627,1704985843856,-799.07,0.00030958,2]
[311219628,1704985843866,-505.81,0.00030958,2]
[311219629,1704985843875,-500.0,0.00030958,2]
[311219630,1704985843885,-559.81,0.00030958,2]
[311219631,1704985843894,-351.79149334,0.00030958,2]
[311219632,1704985843903,-1250.5,0.00030958,2]
[311219633,1704985843912,-570.29,0.00030958,2]
[311219634,1704985843922,-1460.93,0.00030958,2]
[311219635,1704985843931,-706.71,0.00030958,2]
[311219636,1704985843940,-500.0,0.00030958,2]
[311219637,1704985843949,-500.0,0.00030958,2]
[311219638,1704985843958,-2304.52,0.00030958,2]
[311219639,1704985843970,-446.62750272,0.00030958,2]
[311219640,1704985843979,-500.0,0.00030958,2]
[311219641,1704985843988,-616.55,0.00030958,2]
[311219642,1704985843997,-500.0,0.00030958,2]
[311219643,1704985844005,-500.0,0.00030958,2]
[311219644,1704985844015,-5900.90122683,0.00030958,2]
[311219645,1704985844052,-673.63415669,0.00030958,2]
[311219646,1704985844229,-4460.54461648,0.00030958,2]
[311219647,1704985844239,-500.0,0.00030958,2]
[311219648,1704985844249,-500.0,0.00030958,2]
[311219649,1704985844258,-558.13,0.00030958,2]
[311219650,1704985844268,-506.25,0.00030958,2]
[311219651,1704985844277,-7120.48,0.00030958,2]
[311219652,1704985844287,-281.67520391,0.00030958,2]
[311219653,1704985844303,-1065.4,0.00030958,2]
[311219654,1704985844314,-934.18479609,0.00030958,2]
[311219655,1704985844323,-3969.33,0.00030958,2]
[311219656,1704985844333,-500.0,0.00030958,2]
[311219657,1704985844342,-500.0,0.00030958,2]
[311219658,1704985844352,-1777.63,0.00030958,2]
[311219659,1704985844361,-500.0,0.00030958,2]
[311219660,1704985844370,-707.83,0.00030958,2]
[311219661,1704985844379,-1522.93,0.00030958,2]
[311219662,1704985844387,-500.0,0.00030958,2]
[311219663,1704985844396,-500.0,0.00030958,2]
[311219664,1704985844404,-500.0,0.00030958,2]
[311219665,1704985844413,-1101.8,0.00030958,2]
[311219666,1704985844422,-619.03,0.00030958,2]
[311219667,1704985844432,-731.38,0.00030958,2]
[311219668,1704985844441,-500.0,0.00030958,2]
[311219669,1704985844451,-9393.88520391,0.00031132,3]
[311219670,1704985844463,-11509.94738251,0.00031132,3]
[311219671,1704985844477,-166.92274785,0.00031177,7]
[311219672,1704985844486,-156.64783063,0.00031199,7]
[311219673,1704985844496,-200.0,0.000312,4]
[311219674,1704985844505,-5000.0,0.00031204,7]
[311219675,1704985844515,-500.0,0.00031231,2]
[311219676,1704985844523,-188.17570378,0.00031231,2]
[311219677,1704985844533,-463.29911026,0.00031231,2]
[311219678,1704985844543,-259.79285517,0.00031231,2]
[311219679,1704985844554,-500.0,0.00031231,2]
[311219680,1704985844564,-500.0,0.00031231,2]
[311219681,1704985844574,-500.0,0.00031231,2]
[311219682,1704985844586,-500.0,0.00031231,2]
[311219683,1704985844595,-500.0,0.00031231,2]
[311219684,1704985844604,-500.0,0.00031231,2]
[311219685,1704985844613,-500.0,0.00031231,2]
[311219686,1704985844622,-527.95595524,0.00031231,2]
[311219687,1704985844631,-500.0,0.00031231,2]
[311219688,1704985844641,-500.0,0.00031231,2]
[311219689,1704985844650,-500.0,0.00031231,2]
[311219690,1704985844659,-500.0,0.00031231,2]
[311219691,1704985844669,-476.56656392,0.00031231,2]
[311219692,1704985844678,-500.0,0.00031231,2]
[311219693,1704985844687,-500.0,0.00031231,2]
[311219694,1704985844696,-500.0,0.00031231,2]
[311219695,1704985844705,-500.0,0.00031231,2]
[311219696,1704985844715,-500.0,0.00031231,2]
[311219697,1704985844726,-426.07072769,0.00031231,2]
[311219698,1704985844735,-500.0,0.00031231,2]
[311219699,1704985844744,-500.0,0.00031232,2]
[311219700,1704985844754,-500.0,0.00031232,2]
[311219701,1704985844763,-729.31,0.00031232,2]
[311219702,1704985844772,-500.0,0.00031232,2]
[311219703,1704985844781,-1000.0,0.00031232,2]
[311219704,1704985844790,-500.0,0.00031232,2]
[311219705,1704985844800,-619.31,0.00031232,2]
[311219706,1704985844810,-896.81,0.00031232,2]
[311219707,1704985844818,-208.7901987,0.00031232,2]
[311219708,1704985844827,-500.0,0.00031232,2]
[311219709,1704985844837,-500.0,0.00031232,2]
[311219710,1704985844846,-500.0,0.00031232,2]
[311219711,1704985844856,-500.0,0.00031232,2]
[311219712,1704985844865,-500.0,0.00031232,2]
[311219713,1704985844875,-500.0,0.00031232,2]
[311219714,1704985844884,-799.07,0.00031232,2]
[311219715,1704985844893,-505.81,0.00031232,2]
[311219716,1704985844903,-500.0,0.00031232,2]
[311219717,1704985844913,-559.81,0.00031232,2]
[311219718,1704985844923,-1250.5,0.00031232,2]
[311219719,1704985844932,-570.29,0.00031232,2]
[311219720,1704985844941,-1460.93,0.00031232,2]
[311219721,1704985844953,-706.71,0.00031232,2]
[311219722,1704985844962,-500.0,0.00031232,2]
[311219723,1704985844978,-500.0,0.00031232,2]
[311219724,1704985844987,-2304.52,0.00031232,2]
[311219725,1704985844997,-500.0,0.00031232,2]
[311219726,1704985845008,-616.55,0.00031232,2]
[311219727,1704985845017,-500.0,0.00031232,2]
[311219728,1704985845027,-500.0,0.00031232,2]
[311219729,1704985845036,-11035.08,0.00031232,2]
[311219730,1704985845045,-500.0,0.00031232,2]
[311219731,1704985845055,-500.0,0.00031232,2]
[311219732,1704985845064,-558.13,0.00031232,2]
[311219733,1704985845073,-506.25,0.00031232,2]
[311219734,1704985845083,-7120.48,0.00031232,2]
[311219735,1704985845092,-2281.26,0.00031232,2]
[311219736,1704985845195,-3969.33,0.00031232,2]
[311219737,1704985845206,-491.44186186,0.00031232,2]
[311219738,1704985845217,-500.0,0.00031232,2]
[311219739,1704985845227,-1777.63,0.00031232,2]
[311219740,1704985845237,-500.0,0.00031232,2]
[311219741,1704985845247,-707.83,0.00031232,2]
[311219742,1704985845258,-1522.93,0.00031232,2]
[311219743,1704985845267,-500.0,0.00031232,2]
[311219744,1704985845277,-500.0,0.00031232,2]
[311219745,1704985845285,-500.0,0.00031232,2]
[311219746,1704985845294,-1101.8,0.00031232,2]
[311219747,1704985845304,-619.03,0.00031232,2]
[311219748,1704985845313,-731.38,0.00031232,2]
[311219749,1704985845323,-500.0,0.00031232,2]
[311219750,1704985845332,-504.22289785,0.00031504,7]
[311219751,1704985845341,-500.0,0.00031506,2]
[311219752,1704985845351,-354.73174398,0.00031506,2]
[311219753,1704985845360,-729.31,0.00031506,2]
[311219754,1704985845369,-500.0,0.00031506,2]
[311219755,1704985845379,-1000.0,0.00031506,2]
[311219756,1704985845388,-43.21395973,0.00031506,2]
[311219758,1704985845463,-456.78604027,0.00031506,2]
[311219759,1704985845476,-619.31,0.00031506,2]
[311219761,1704985845485,-896.81,0.00031506,2]
[311219762,1704985845494,-500.0,0.00031506,2]
[311219764,1704985845504,-500.0,0.00031506,2]
[311219766,1704985845513,-500.0,0.00031506,2]
[311219767,1704985845522,-500.0,0.00031506,2]
[311219768,1704985845532,-500.0,0.00031506,2]
[311219769,1704985845542,-500.0,0.00031506,2]
[311219770,1704985845551,-799.07,0.00031506,2]
[311219772,1704985845560,-505.81,0.00031506,2]
[311219774,1704985845570,-500.0,0.00031506,2]
[311219776,1704985845583,-559.81,0.00031506,2]
[311219778,1704985845592,-1250.5,0.00031506,2]
[311219779,1704985845601,-570.29,0.00031506,2]
[311219781,1704985845610,-1460.93,0.00031506,2]
[311219783,1704985845619,-706.71,0.00031506,2]
[311219784,1704985845630,-500.0,0.00031506,2]
[311219785,1704985845640,-500.0,0.00031506,2]
[311219786,1704985845650,-2304.52,0.00031506,2]
[311219787,1704985845660,-500.0,0.00031506,2]
[311219788,1704985845669,-616.55,0.00031506,2]
[311219789,1704985845679,-500.0,0.00031506,2]
[311219790,1704985845688,-500.0,0.00031506,2]
[311219791,1704985845697,-11035.08,0.00031506,2]
[311219792,1704985845707,-430.35467202,0.00031506,2]
[311219793,1704985845718,-500.0,0.00031506,2]
[311219794,1704985845728,-558.13,0.00031506,2]
[311219795,1704985845737,-506.25,0.00031506,2]
[311219797,1704985845747,-7120.48,0.00031506,2]
[311219798,1704985845757,-2281.26,0.00031506,2]
[311219799,1704985845767,-3969.33,0.00031506,2]
[311219800,1704985845776,-500.0,0.00031506,2]
[311219801,1704985845786,-1777.63,0.00031506,2]
[311219802,1704985845797,-500.0,0.00031506,2]
[311219803,1704985845806,-707.83,0.00031506,2]
[311219804,1704985845816,-1522.93,0.00031506,2]
[311219805,1704985845826,-500.0,0.00031506,2]
[311219806,1704985845836,-500.0,0.00031506,2]
[311219807,1704985845846,-500.0,0.00031506,2]
[311219808,1704985845857,-1101.8,0.00031506,2]
[311219809,1704985845868,-619.03,0.00031506,2]
[311219810,1704985845878,-731.38,0.00031506,2]
[311219811,1704985845888,-520.45111071,0.00031506,2]
[311219812,1704985845897,-156.64783063,0.00031522,7]
[311219813,1704985845907,-300.0,0.000316,15]
[311219814,1704985845918,-155.78182122,0.00031751,7]
[311219815,1704985845927,-500.0,0.0003178,2]
[311219816,1704985845936,-729.31,0.0003178,2]
[311219817,1704985845946,-500.0,0.0003178,2]
[311219818,1704985845956,-500.0,0.0003178,2]
[311219819,1704985845969,-619.31,0.0003178,2]
[311219820,1704985845979,-896.81,0.0003178,2]
[311219821,1704985845989,-500.0,0.0003178,2]
[311219822,1704985845998,-216.46883088,0.0003178,2]
[311219823,1704985846008,-500.0,0.0003178,2]
[311219824,1704985846017,-292.07623867,0.0003178,2]
[311219825,1704985846026,-275.34614804,0.0003178,2]
[311219826,1704985846035,-500.0,0.0003178,2]
[311219827,1704985846045,-799.07,0.0003178,2]
[311219828,1704985846055,-505.81,0.0003178,2]
[311219829,1704985846064,-500.0,0.0003178,2]
[311219830,1704985846074,-559.81,0.0003178,2]
[311219831,1704985846084,-1250.5,0.0003178,2]
[311219832,1704985846093,-570.29,0.0003178,2]